bitfinex-derivatives/quotes_ETHF0:USTF0_20241018
["timestamp","ask_amount","ask_price","bid_price","bid_amount"]
[1729216244155,3.58563,2647.4,2647.2,0.37785]
[1729216244356,3.58563,2647.4,2647.1,4.02785]
[1729216244862,3.58562,2647.4,2647.1,4.02785]
[1729216245051,3.58562,2647.4,2647.1,3.65]
[1729216245361,3.58563,2647.4,2647.3,3.65]
[1729216245752,3.58562,2647.4,2647.3,3.65]
[1729216245954,3.58563,2647.4,2647.1,0.37785]
[1729216246356,3.58563,2647.4,2647.0,3.65]
[1729216246660,3.58563,2647.4,2647.1,0.37785]
[1729216247157,0.37786,2647.2,2647.0,3.65]
[1729216247356,0.37786,2647.1,2647.0,3.65]
[1729216248155,0.37794,2646.6,2646.5,3.65]
[1729216248549,3.2078,2646.8,2646.5,3.65]
[1729216248868,3.58571,2646.8,2646.6,0.37793]
[1729216249164,3.58571,2646.8,2646.7,3.65]
[1729216250763,3.2078,2646.8,2646.5,3.65]
[1729216251061,3.2078,2646.8,2646.1,3.2078]
[1729216251062,0.37798,2646.3,2646.1,4.028]
[1729216251268,0.37799,2646.2,2646.1,3.65]
[1729216251849,3.2078,2646.3,2646.1,3.65]
[1729216252047,3.58578,2646.3,2646.1,4.028]
[1729216252760,3.2078,2646.3,2646.2,0.37799]
[1729216252960,3.5971,2646.7,2646.1,3.65]
[1729216253164,3.5971,2646.7,2646.4,3.65]
[1729216253165,0.37796,2646.5,2646.4,3.65]
[1729216253956,0.37799,2646.2,2646.1,3.65]
[1729216254155,9.7784,2646.5,2645.9,3.65]
[1729216254156,0.37802,2646.0,2645.9,3.65]
[1729216254455,0.37806,2645.7,2645.6,3.65]
[1729216254652,0.37805,2645.8,2645.6,4.02808]
[1729216254866,0.3942,2646.1,2645.6,4.02808]
[1729216254867,0.7941,2646.1,2645.6,3.65]
[1729216255158,0.7941,2646.1,2646.0,3.65]
[1729216255159,1.1721,2646.1,2646.0,3.65]
[1729216255762,1.1721,2646.1,2645.7,4.02805]
[1729216255763,0.37804,2645.9,2645.7,4.02805]
[1729216256062,0.37804,2645.9,2645.7,3.65]
[1729216256366,0.37805,2645.8,2645.7,3.65]
[1729216257163,0.7941,2646.1,2645.7,3.65]
[1729216257463,1.17211,2646.1,2646.0,3.65]
[1729216257657,0.7941,2646.1,2645.7,3.65]
[1729216257857,0.37805,2645.8,2645.7,3.65]
[1729216258059,0.7941,2646.1,2645.7,3.65]
[1729216258361,0.37805,2645.8,2645.7,3.65]
[1729216258565,0.7941,2646.1,2645.7,4.02806]
[1729216258566,0.37804,2645.9,2645.7,4.02806]
[1729216259257,0.7941,2646.1,2645.7,3.65]
[1729216259464,0.37804,2645.9,2645.7,4.02805]
[1729216260458,0.7941,2646.1,2645.7,3.65]
[1729216260662,0.37805,2645.8,2645.7,3.65]
[1729216260966,0.37805,2645.8,2645.5,3.58588]
[1729216260967,0.37808,2645.7,2645.5,3.65]
[1729216261358,0.37808,2645.6,2645.5,3.65]
[1729216261957,3.2078,2646.0,2645.5,3.65]
[1729216262159,0.37804,2645.9,2645.7,4.02805]
[1729216262370,3.2078,2646.0,2645.7,3.65]
[1729216262669,0.37804,2645.9,2645.7,4.02805]
[1729216262864,3.2078,2646.0,2645.7,4.02805]
[1729216263366,0.37807,2645.7,2645.4,3.65]
[1729216263565,3.43733378,2645.8,2645.4,3.65]
[1729216263762,0.37808,2645.6,2645.2,1.311]
[1729216263962,0.37808,2645.6,2645.5,3.32809]
[1729216264177,0.37807,2645.7,2645.5,3.32809]
[1729216264374,0.37808,2645.6,2645.5,2.95]
[1729216264565,0.37808,2645.6,2645.5,3.32809]
[1729216264766,3.43733378,2645.7,2645.5,2.95]
[1729216265068,0.37818,2644.9,2644.7,0.37819]
[1729216265271,0.94524,2645.5,2644.3,1.311]
[1729216265272,3.2078,2645.2,2644.3,1.311]
[1729216265462,0.37816,2645.0,2644.8,3.32818]
[1729216265662,3.82682203,2644.9,2644.8,2.95]
[1729216266272,12.9886,2644.9,2644.4,2.95]
[1729216266462,3.45004699,2644.6,2644.5,0.37823]
[1729216266666,3.82825699,2644.7,2644.5,3.32823]
[1729216266880,3.45004699,2644.7,2644.5,2.95]
[1729216267074,3.45004699,2644.7,2644.6,0.37822]
[1729216267265,0.37821,2644.7,2644.5,2.95]
[1729216267463,6.65784699,2644.9,2644.5,2.95]
[1729216267678,3.45004699,2644.8,2644.5,2.95]
[1729216267873,3.45004699,2644.7,2644.3,3.63]
[1729216268072,3.45004699,2644.7,2644.6,4.00822]
[1729216268270,0.3782,2644.7,2644.6,3.63]
[1729216268872,0.3782,2644.7,2644.2,0.4253]
[1729216268873,0.37821,2644.7,2644.4,0.37824]
[1729216269074,3.82824699,2644.8,2644.5,0.37823]
[1729216269272,3.82824699,2644.8,2644.3,3.63]
[1729216269273,6.65784699,2644.9,2644.3,3.63]
[1729216269469,0.37821,2644.7,2644.4,0.37825]
[1729216269673,0.37825,2644.4,2644.3,3.63]
[1729216270472,0.37824,2644.5,2644.3,4.00825]
[1729216270663,0.3886,2644.6,2644.3,3.63]
[1729216270864,0.3886,2644.6,2643.9,3.63]
[1729216271172,0.3913,2644.8,2644.5,4.00823]
[1729216271378,0.3913,2644.8,2644.5,3.63]
[1729216271563,0.3913,2644.8,2644.5,4.00823]
[1729216271564,0.3782,2644.7,2644.5,4.00823]
[1729216271983,0.3913,2644.8,2644.5,3.63]
[1729216272166,3.5976,2645.1,2644.5,3.63]
[1729216272167,0.37818,2644.9,2644.7,0.3782]
[1729216272576,0.37818,2644.9,2644.5,3.63]
[1729216272772,0.37818,2644.9,2644.6,0.37821]
[1729216272979,0.37821,2644.7,2644.5,3.63]
[1729216273274,3.5976,2645.1,2644.2,3.63]
[1729216273275,0.37826,2644.4,2644.2,3.63]
[1729216273471,3.2078,2644.7,2644.2,3.63]
[1729216273664,0.3898,2645.1,2644.2,3.63]
[1729216273665,3.2078,2645.0,2644.2,3.63]
[1729216273863,3.2078,2645.0,2644.3,0.37826]
[1729216274067,0.37823,2644.6,2644.2,3.63]
[1729216274271,0.37821,2644.7,2644.5,3.63]
[1729216274466,0.37822,2644.6,2644.5,3.63]
[1729216274870,3.7816,2644.6,2643.8,3.2078]
[1729216275173,0.4023,2644.5,2644.4,0.37825]
[1729216275378,0.37825,2644.4,2644.2,0.37827]
[1729216275570,0.4023,2644.5,2644.1,3.63]
[1729216275771,0.37828,2644.2,2644.1,3.63]
[1729216276082,0.37828,2644.2,2643.8,3.2078]
[1729216276083,0.37831,2644.0,2643.9,3.63]
[1729216276280,3.2078,2644.3,2643.9,4.00831]
[1729216276477,3.2078,2644.3,2644.1,3.63]
[1729216276776,0.4198,2644.4,2644.1,3.63]
[1729216277074,0.4198,2644.4,2644.3,0.37826]
[1729216277379,0.4198,2644.4,2644.1,3.63]
[1729216277579,0.4198,2644.4,2644.3,0.37826]
[1729216277779,0.79805,2644.4,2644.2,0.37827]
[1729216279075,0.79805,2644.4,2643.8,3.63]
[1729216279076,4.2014,2644.4,2643.8,3.63]
[1729216279266,0.37831,2644.0,2643.8,4.00833]
[1729216279466,0.3783,2644.1,2643.8,3.63]
[1729216279665,3.2078,2644.2,2643.8,3.63]
[1729216279880,3.2078,2644.2,2644.0,0.3783]
[1729216280075,0.37829,2644.1,2644.0,0.3783]
[1729216280270,0.37831,2644.0,2643.8,4.00833]
[1729216280471,0.3783,2644.1,2643.9,0.37831]
[1729216280979,0.37832,2644.0,2643.8,0.37833]
[1729216281373,0.3783,2644.1,2643.9,0.37832]
[1729216281570,3.2078,2644.2,2643.6,3.63]
[1729216281777,0.3988,2644.3,2643.6,3.63]
[1729216281778,0.37835,2643.7,2643.6,3.63]
[1729216281973,0.37838,2643.5,2643.4,3.2078]
[1729216282172,3.2078,2643.6,2643.1,0.37843]
[1729216282368,3.2078,2643.6,2643.0,4.0229]
[1729216282676,3.2078,2644.0,2643.4,3.63]
[1729216282885,3.2078,2644.0,2643.5,0.37837]
[1729216283183,0.37833,2643.8,2643.5,0.37838]
[1729216283481,3.2078,2644.0,2643.4,3.63]
[1729216283871,0.37837,2643.6,2643.4,4.00839]
[1729216284181,3.2078,2644.0,2643.4,3.63]
[1729216284378,0.37838,2643.5,2643.4,3.63]
[1729216284573,0.37838,2643.5,2643.3,0.3784]
[1729216284775,3.2078,2643.6,2643.1,3.63]
[1729216284776,3.2078,2643.9,2643.1,3.63]
[1729216284977,3.2078,2643.9,2643.0,3.6007]
[1729216284978,3.2078,2643.9,2643.8,0.37833]
[1729216285281,3.2078,2643.9,2643.7,3.63]
[1729216285282,3.58613,2643.9,2643.7,4.00834]
[1729216285473,3.58613,2643.9,2643.5,0.37838]
[1729216285474,0.37835,2643.8,2643.5,0.37838]
[1729216285687,0.37835,2643.8,2643.4,4.0448]
[1729216285872,3.2078,2643.9,2643.1,3.63]
[1729216286074,3.2078,2643.9,2643.6,0.37836]
[1729216286280,3.2078,2643.9,2643.5,0.37837]
[1729216286281,0.37835,2643.7,2643.5,0.37837]
[1729216286478,0.37837,2643.6,2643.4,4.00839]
[1729216286681,0.37835,2643.8,2643.6,0.37836]
[1729216286879,0.37833,2643.8,2643.4,4.00838]
[1729216287072,3.2078,2643.9,2643.4,3.63]
[1729216287270,1.76069,2644.3,2643.4,3.63]
[1729216287271,3.2078,2644.1,2643.7,3.63]
[1729216287577,0.37831,2644.0,2643.8,0.37832]
[1729216288079,0.3783,2644.0,2643.6,0.37836]
[1729216288386,3.2078,2644.1,2643.1,6.8378]
[1729216288586,0.37836,2643.7,2643.5,0.37837]
[1729216288771,3.2078,2644.1,2643.6,0.37836]
[1729216288978,3.2078,2644.1,2643.4,3.63]
[1729216289278,3.2078,2644.1,2643.7,3.63]
[1729216289476,3.5861,2644.1,2643.9,0.37831]
[1729216289786,0.37834,2643.8,2643.6,0.37835]
[1729216289971,3.2078,2644.1,2643.8,0.37833]
[1729216289972,0.37832,2644.0,2643.8,0.37833]
[1729216290171,3.2078,2644.1,2643.9,0.37832]
[1729216290377,3.2078,2644.1,2643.7,2.95]
[1729216290572,0.37836,2643.7,2643.5,0.37837]
[1729216290976,4.15356,2644.1,2643.4,3.32838]
[1729216291282,4.15356,2644.1,2643.0,3.2078]
[1729216291283,3.89588,2643.7,2643.0,3.2078]
[1729216291579,0.37838,2643.5,2643.0,3.2078]
[1729216291771,0.37842,2643.2,2643.0,3.58625]
[1729216291973,0.7867,2643.6,2643.0,3.2078]
[1729216292174,0.7867,2643.6,2643.2,2.95]
[1729216292378,0.37842,2643.3,2643.2,2.95]
[1729216292575,0.7867,2643.6,2643.0,3.58624]
[1729216292885,0.7867,2643.6,2642.6,3.2078]
[1729216293080,3.2078,2643.5,2642.9,2.95]
[1729216293379,0.37842,2643.2,2643.0,0.37845]
[1729216294488,0.37843,2643.2,2643.0,0.37845]
[1729216294685,0.37841,2643.3,2643.1,3.32843]
[1729216294879,0.37841,2643.3,2643.1,2.95]
[1729216295079,0.37842,2643.2,2643.1,2.95]
[1729216295485,3.2078,2643.5,2643.1,2.95]
[1729216295688,0.37842,2643.3,2643.1,2.95]
[1729216295982,0.37842,2643.3,2643.1,3.32843]
[1729216296300,0.37841,2643.3,2643.1,3.32843]
[1729216297380,0.37841,2643.3,2643.1,2.95]
[1729216297779,0.37841,2643.3,2643.1,3.32843]
[1729216297987,3.2078,2643.5,2643.1,3.32843]
[1729216298289,0.37841,2643.3,2643.2,0.37841]
[1729216298793,0.7867,2643.6,2643.1,2.95]
[1729216298990,0.3784,2643.4,2643.2,0.37841]
[1729216299189,0.3949,2643.6,2643.3,0.37841]
[1729216299688,0.37839,2643.4,2643.3,0.37841]
[1729216299888,0.3949,2643.6,2643.1,2.95]
[1729216300086,0.37842,2643.3,2643.1,0.37843]
[1729216300282,0.37842,2643.2,2643.0,3.58624]
[1729216300488,0.37843,2643.2,2643.0,3.58624]
[1729216300690,0.3978,2643.5,2642.9,2.95]
[1729216300984,0.37842,2643.2,2643.0,0.37845]
[1729216301180,0.37841,2643.3,2643.1,0.37843]
[1729216301385,0.3978,2643.5,2643.0,0.37845]
[1729216301689,0.3978,2643.5,2642.9,2.95]
[1729216301882,0.37841,2643.3,2643.1,3.32843]
[1729216302082,0.37843,2643.2,2643.0,0.37844]
[1729216302281,0.37842,2643.3,2643.1,0.37843]
[1729216302488,0.37842,2643.2,2642.9,2.95]
[1729216302699,0.37842,2643.2,2643.1,0.37843]
[1729216302885,0.37842,2643.2,2643.0,0.37844]
[1729216303083,0.3978,2643.5,2643.0,0.37844]
[1729216303287,0.3978,2643.5,2642.7,2.95]
[1729216303288,3.2078,2643.3,2642.7,2.95]
[1729216303486,0.37848,2642.8,2642.6,3.5863]
[1729216303806,7.10384,2643.3,2642.6,3.5863]
[1729216303807,6.1578,2643.3,2642.7,0.37849]
[1729216303991,6.1578,2643.3,2642.7,0.37848]
[1729216304293,1.33581,2643.4,2642.4,0.20052685]
[1729216304294,3.2078,2643.0,2642.4,0.20052685]
[1729216304491,3.2078,2643.0,2642.5,2.95]
[1729216304492,0.4143,2642.9,2642.5,2.95]
[1729216304795,0.37848,2642.8,2642.5,2.95]
[1729216304997,0.4143,2642.9,2642.8,0.37848]
[1729216305198,0.79276,2642.9,2642.7,0.37848]
[1729216305490,0.79276,2642.9,2642.5,2.95]
[1729216305491,0.4143,2642.9,2642.5,2.95]
[1729216305897,0.79277,2642.9,2642.5,2.95]
[1729216306199,0.79277,2642.9,2642.7,0.37848]
[1729216306500,0.79277,2642.9,2642.6,0.37851]
[1729216306792,0.79277,2642.9,2642.5,2.95]
[1729216306993,0.4143,2642.9,2642.5,2.95]
[1729216307187,0.4143,2642.9,2642.8,0.37848]
[1729216307381,3.2078,2643.3,2642.7,2.95]
[1729216307586,4.00321,2643.3,2643.1,0.37843]
[1729216308985,0.37843,2643.2,2643.0,0.37845]
[1729216309795,0.37844,2643.1,2642.9,3.32845]
[1729216309999,0.37844,2643.1,2642.9,0.37845]
[1729216310489,3.2078,2643.2,2642.7,3.7524]
[1729216310791,0.37843,2643.1,2642.9,0.37845]
[1729216311192,0.37845,2643.0,2642.9,0.37845]
[1729216311390,0.37844,2643.1,2642.9,0.37845]
[1729216311697,0.37843,2643.1,2642.9,0.37846]
[1729216311895,0.37845,2643.0,2642.9,0.37846]
[1729216312194,3.2078,2643.2,2642.7,3.7524]
[1729216312396,0.37846,2643.0,2642.8,0.37847]
[1729216312594,0.37846,2643.0,2642.7,3.3374]
[1729216312595,0.37847,2642.9,2642.7,3.71588]
[1729216312793,0.37846,2643.0,2642.8,0.37847]
[1729216313092,3.2078,2643.2,2642.7,3.3374]
[1729216313297,0.37845,2643.0,2642.8,0.37848]
[1729216313692,3.2078,2643.2,2642.7,3.3374]
[1729216313997,0.37847,2642.9,2642.7,3.71589]
[1729216314403,3.2078,2643.2,2642.7,3.3374]
[1729216314597,0.37846,2643.0,2642.8,0.37847]
[1729216314796,0.37846,2643.0,2642.8,0.37848]
[1729216314797,0.37845,2643.0,2642.8,0.37848]
[1729216315295,0.37845,2643.0,2642.9,0.37846]
[1729216315485,3.2078,2643.2,2642.7,3.3374]
[1729216315687,3.2078,2643.2,2643.1,3.32843]
[1729216315894,3.2078,2643.2,2642.9,3.32845]
[1729216315895,0.37844,2643.1,2642.9,3.32845]
[1729216316092,3.2078,2643.2,2642.9,2.95]
[1729216316293,0.37845,2643.0,2642.9,2.95]
[1729216316896,3.58623,2643.2,2643.0,0.37844]
[1729216317093,0.417,2643.3,2643.1,3.32843]
[1729216317294,0.37842,2643.2,2643.1,2.95]
[1729216317998,0.417,2643.3,2643.0,0.37845]
[1729216317999,0.37844,2643.1,2643.0,0.37845]
[1729216318195,0.37845,2643.0,2642.9,2.95]
[1729216320299,0.37845,2643.0,2642.9,3.32845]
[1729216320501,0.37845,2643.0,2642.9,2.95]
[1729216320895,0.37848,2642.8,2642.7,0.21077553]
[1729216321194,0.37848,2642.8,2642.7,0.37849]
[1729216321395,0.37848,2642.8,2642.7,2.95]
[1729216321605,3.82852699,2642.8,2642.7,2.95]
[1729216321792,0.37848,2642.8,2642.7,2.95]
[1729216321990,3.82852699,2642.8,2642.7,3.32849]
[1729216322197,3.45004699,2642.8,2642.7,3.32849]
[1729216322392,3.45004699,2642.9,2642.7,2.95]
[1729216322592,0.37846,2642.9,2642.6,2.95]
[1729216322794,3.45004699,2643.0,2642.7,0.37849]
[1729216323095,3.82851699,2642.9,2642.7,0.37849]
[1729216323598,3.45004699,2642.9,2642.6,2.95]
[1729216323795,3.2078,2643.1,2642.6,2.95]
[1729216323997,0.417,2643.3,2642.6,2.95]
[1729216324192,0.79541,2643.3,2642.9,0.37846]
[1729216324396,0.37844,2643.1,2642.9,0.37845]
[1729216324607,2.95,2643.0,2642.5,0.20834857]
[1729216324798,0.37851,2642.6,2642.5,0.37852]
[1729216325004,0.37851,2642.6,2642.5,3.32852]
[1729216325196,3.86664699,2642.9,2642.5,3.32852]
[1729216325501,0.4166,2642.9,2642.8,2.95]
[1729216325710,0.37849,2642.8,2642.6,3.3285]
[1729216325896,0.37849,2642.8,2642.7,0.37849]
[1729216326293,0.37849,2642.7,2642.6,3.3285]
[1729216326500,0.4166,2642.9,2642.6,3.3285]
[1729216326707,0.37848,2642.8,2642.6,3.3285]
[1729216327108,0.37849,2642.7,2642.6,2.95]
[1729216327409,0.37848,2642.8,2642.6,3.3285]
[1729216327599,0.4166,2642.9,2642.4,0.2087077]
[1729216327805,3.2078,2642.6,2641.8,3.2078]
[1729216328007,7.03635699,2642.6,2642.5,2.95]
[1729216328203,3.58631,2642.6,2642.5,2.95]
[1729216328396,3.2078,2642.6,2642.5,3.32852]
[1729216329307,3.58631,2642.6,2642.5,2.95]
[1729216330208,3.2078,2642.6,2642.5,3.32852]
[1729216331002,3.58631,2642.6,2642.5,3.32852]
[1729216331209,3.2078,2642.6,2642.5,3.32852]
[1729216331609,3.58631,2642.6,2642.5,3.32852]
[1729216332106,3.2078,2642.6,2641.9,0.815]
[1729216332317,0.37852,2642.5,2642.1,3.32856]
[1729216332504,0.37856,2642.3,2642.1,3.32857]
[1729216332903,0.37856,2642.2,2642.1,2.95]
[1729216333104,6.65784699,2642.6,2642.1,2.95]
[1729216333499,0.37852,2642.5,2642.4,0.37853]
[1729216333708,0.37852,2642.5,2642.3,2.95]
[1729216334011,0.37853,2642.4,2642.3,2.95]
[1729216334603,6.65784699,2642.6,2642.1,2.95]
[1729216334803,3.45004699,2642.4,2642.1,2.95]
[1729216335003,0.37856,2642.2,2642.1,2.95]
[1729216335200,3.45004699,2642.4,2642.1,2.95]
[1729216335411,0.37853,2642.5,2642.3,3.32854]
[1729216335609,0.3978,2642.7,2642.3,2.95]
[1729216335610,3.84784699,2642.7,2642.3,2.95]
[1729216335916,0.37853,2642.5,2642.3,2.95]
[1729216336113,0.37853,2642.5,2642.3,3.32854]
[1729216336509,6.65784699,2642.6,2642.4,0.37853]
[1729216336814,3.2078,2642.6,2642.5,3.32852]
[1729216337010,3.2078,2642.6,2642.5,2.95]
[1729216337209,3.58631,2642.6,2642.5,2.95]
[1729216337514,3.58631,2642.6,2642.5,3.32852]
[1729216337702,3.58631,2642.6,2642.5,2.95]
[1729216337902,3.58631,2642.6,2642.3,2.95]
[1729216337903,0.37853,2642.5,2642.3,2.95]
[1729216338213,3.96294546,2642.4,2642.3,2.95]
[1729216338512,4.34147546,2642.4,2642.3,3.32855]
[1729216338816,4.34147546,2642.4,2642.3,2.95]
[1729216339014,0.37853,2642.4,2642.3,1.63326361]
[1729216340804,9.7848,2642.4,2641.9,2.95]
[1729216341008,7.17016096,2642.1,2641.9,3.3286]
[1729216341204,7.54874096,2642.1,2642.0,0.37859]
[1729216341519,7.54874096,2642.1,2641.9,3.32859]
[1729216341706,3.46650735,2642.0,2641.9,2.95]
[1729216341913,3.46650735,2642.0,2641.9,3.3286]
[1729216343210,3.2078,2642.1,2641.9,2.95]
[1729216343416,7.54874096,2642.1,2642.0,0.37859]
[1729216343616,7.17016096,2642.1,2642.0,0.37859]
[1729216344312,7.54874096,2642.1,2642.0,0.37859]
[1729216344519,7.17016096,2642.1,2642.0,0.37859]
[1729216345118,7.54874096,2642.1,2642.0,0.37859]
[1729216345319,7.54874096,2642.1,2641.9,2.95]
[1729216345509,3.46524066,2642.0,2641.9,3.32861]
[1729216346117,0.37856,2642.3,2642.1,0.37857]
[1729216346307,3.2078,2642.5,2642.2,2.95]
[1729216346517,3.2078,2642.5,2642.4,0.37853]
[1729216347416,3.58632,2642.5,2642.4,0.37853]
[1729216347913,0.37853,2642.4,2642.2,2.95]
[1729216348115,0.37853,2642.4,2642.2,3.32855]
[1729216348327,0.37853,2642.4,2642.2,2.95]
[1729216348509,3.58633,2642.5,2642.3,0.37855]
[1729216349030,0.37853,2642.4,2642.3,0.37855]
[1729216349320,0.37853,2642.4,2642.2,3.32856]
[1729216349720,3.2078,2642.5,2642.3,0.37854]
[1729216350020,0.37854,2642.4,2642.3,0.37854]
[1729216350224,0.37854,2642.4,2642.2,2.95]
[1729216350225,3.2078,2642.5,2642.2,2.95]
[1729216350526,3.2078,2642.9,2642.4,2.95]
[1729216350823,0.4075,2643.4,2643.3,0.37841]
[1729216351123,6.67304066,2643.8,2643.1,2.95]
[1729216351424,3.2078,2643.5,2642.9,2.95]
[1729216351617,0.37842,2643.2,2643.0,0.37844]
[1729216351817,0.37841,2643.3,2643.0,0.37845]
[1729216352024,0.37841,2643.3,2643.0,0.37844]
[1729216352324,3.2078,2643.5,2643.0,0.37844]
[1729216352515,0.801,2643.7,2643.1,2.95]
[1729216352824,0.37838,2643.5,2643.2,0.37841]
[1729216353016,3.84365066,2643.3,2643.0,0.37844]
[1729216353214,3.46524066,2643.1,2643.0,0.37844]
[1729216353409,3.46524066,2643.2,2643.0,0.37844]
[1729216353810,3.84368066,2643.1,2642.9,2.95]
[1729216354013,3.46524066,2643.0,2642.9,3.32845]
[1729216354514,4.93173244,2643.4,2643.0,0.37845]
[1729216354515,3.46524066,2643.1,2643.0,0.37845]
[1729216354717,3.84367066,2643.1,2642.9,3.32846]
[1729216354910,3.96236096,2643.2,2642.9,3.32846]
[1729216354911,3.46524066,2643.0,2642.9,3.32846]
[1729216355314,3.46524066,2643.1,2642.9,2.95]
[1729216355517,3.46524066,2643.1,2643.0,0.37845]
[1729216356122,3.84368066,2643.1,2642.9,0.37845]
[1729216356336,3.46524066,2643.1,2642.8,2.95]
[1729216356625,3.46524066,2643.0,2642.9,0.37846]
[1729216356820,3.46524066,2643.0,2642.6,2.95]
[1729216357226,3.46524066,2642.9,2642.6,2.95]
[1729216357428,3.46524066,2642.9,2642.5,0.8337]
[1729216357429,6.67304066,2642.8,2642.2,3.2078]
[1729216357720,3.96236096,2642.4,2642.2,0.37856]
[1729216357927,0.37853,2642.4,2642.3,2.95]
[1729216358124,0.79023,2642.4,2642.3,2.95]
[1729216358323,0.79023,2642.4,2642.3,1.86609529]
[1729216358926,4.75259096,2642.4,2642.3,1.86609529]
[1729216359226,0.37855,2642.3,2642.1,2.95]
[1729216359422,4.34091096,2642.3,2642.1,3.32857]
[1729216359619,4.34091096,2642.3,2642.1,2.95]
[1729216359820,3.96236096,2642.3,2642.1,2.95]
[1729216360028,4.34090096,2642.4,2642.1,2.95]
[1729216360215,3.84325344,2642.3,2642.1,3.32857]
[1729216360529,3.46469344,2642.2,2642.1,3.32857]
[1729216361026,3.96236096,2642.3,2642.2,0.37856]
[1729216361229,0.37854,2642.4,2642.2,0.37856]
[1729216361621,0.37855,2642.3,2642.1,3.32857]
[1729216361822,3.2078,2642.6,2642.1,2.95]
[1729216362123,0.37851,2642.6,2642.5,2.95]
[1729216362529,0.8224,2642.7,2642.3,2.95]
[1729216362737,0.37852,2642.5,2642.3,3.32854]
[1729216362916,0.37852,2642.6,2642.4,0.37853]
[1729216363117,0.37852,2642.6,2642.3,3.32853]
[1729216363521,0.8224,2642.7,2642.3,3.32854]
[1729216363522,0.37852,2642.5,2642.3,3.32854]
[1729216363731,0.37851,2642.6,2642.4,0.37853]
[1729216364327,0.8224,2642.7,2642.3,2.95]
[1729216364623,0.8224,2642.7,2642.3,3.32855]
[1729216364624,0.37853,2642.5,2642.3,3.32855]
[1729216364926,0.8224,2642.7,2642.3,2.95]
[1729216365127,0.37853,2642.4,2642.3,2.95]
[1729216366220,0.37854,2642.4,2642.2,0.37856]
[1729216366419,0.37852,2642.5,2642.1,2.95]
[1729216366618,0.37856,2642.3,2642.1,2.95]
[1729216366927,0.37856,2642.3,2642.1,3.32857]
[1729216367128,3.2078,2642.6,2642.1,2.95]
[1729216367624,0.37856,2642.3,2642.1,3.32858]
[1729216368023,3.2078,2642.6,2642.1,2.95]
[1729216368215,0.37856,2642.3,2642.1,3.32857]
[1729216368613,3.2078,2642.6,2642.1,3.32857]
[1729216368614,3.46495615,2642.2,2642.1,3.32857]
[1729216368812,4.33848988,2642.4,2642.1,2.95]
[1729216368813,3.46495615,2642.3,2642.1,2.95]
[1729216369023,3.46495615,2642.3,2642.2,0.37856]
[1729216369324,3.46495615,2642.4,2642.1,2.95]
[1729216369624,3.46495615,2642.5,2642.4,0.37853]
[1729216369825,3.46495615,2642.5,2642.3,2.95]
[1729216370024,0.37853,2642.4,2642.2,0.37856]
[1729216370219,0.37856,2642.2,2642.0,3.2078]
[1729216370418,3.46495615,2642.3,2642.0,3.2078]
[1729216370627,3.84351615,2642.3,2642.1,2.95]
[1729216370824,0.37856,2642.3,2642.1,3.32856]
[1729216371130,3.46495615,2642.3,2642.1,3.32856]
[1729216371344,3.84350615,2642.3,2642.1,3.32856]
[1729216371717,3.46495615,2642.3,2642.1,2.95]
[1729216372033,3.84350615,2642.3,2642.1,3.32857]
[1729216372422,3.46495615,2642.3,2642.1,2.95]
[1729216372623,0.37856,2642.2,2642.1,2.95]
[1729216372926,3.46495615,2642.2,2642.0,3.58639]
[1729216373126,0.3907,2642.1,2642.0,3.58639]
[1729216373619,0.3907,2642.1,2641.8,0.4152]
[1729216373925,3.46495615,2642.0,2641.9,0.3786]
[1729216374137,3.84355615,2642.0,2641.9,0.37861]
[1729216374323,3.84355615,2642.0,2641.8,0.37861]
[1729216374925,0.37862,2641.9,2641.7,3.32863]
[1729216375121,0.37862,2641.8,2641.7,3.32863]
[1729216375425,0.37864,2641.7,2641.5,0.37866]
[1729216375628,3.2078,2641.9,2641.4,3.2078]
[1729216375818,0.37866,2641.5,2641.4,3.2078]
[1729216376026,0.3899,2641.6,2641.5,0.37866]
[1729216376224,0.37866,2641.5,2641.4,3.2078]
[1729216376426,0.3969,2641.5,2641.4,3.2078]
[1729216376619,0.3969,2641.5,2641.4,3.58648]
[1729216377827,0.3969,2641.5,2641.4,3.2078]
[1729216378023,0.77556,2641.5,2641.4,3.2078]
[1729216378236,0.3969,2641.5,2641.4,3.2078]
[1729216378429,0.3969,2641.5,2641.4,3.58648]
[1729216378734,0.3969,2641.5,2641.4,6.53648]
[1729216378936,0.3786,2642.0,2641.7,0.37862]
[1729216379128,0.3786,2642.0,2641.4,6.1578]
[1729216379129,0.4078,2642.0,2641.4,6.1578]
[1729216379323,0.37863,2641.8,2641.4,6.1578]
[1729216379523,0.37864,2641.7,2641.5,0.37866]
[1729216380033,0.37861,2641.9,2641.7,0.37863]
[1729216380235,0.7864,2642.0,2641.8,0.37861]
[1729216380625,0.37861,2641.9,2641.7,0.37863]
[1729216380826,0.4078,2642.0,2641.7,0.37863]
[1729216381131,0.4078,2642.0,2641.9,3.32861]
[1729216381335,0.4078,2642.0,2641.8,3.2078]
[1729216381336,0.78639,2642.0,2641.8,0.37861]
[1729216381521,0.78639,2642.0,2641.7,3.32862]